[Event "Sambir Charity 2024"]
[Site "Sambir"]
[Date "2024.09.22"]
[Round "5.1"]
[White "Polishchuk, Oleg"]
[Black "Dubnevych, Maksym"]
[Result "0-1"]
[ECO "A06"]
[WhiteElo "2078"]
[BlackElo "2267"]
[PlyCount "112"]
[EventDate "2024.09.10"]
[EventType "swiss"]
[EventCountry "UKR"]
[TimeControl "5400+30"]

1. c4 {[%emt 1:20:53]} e6 {[%emt 1:20:51]} 2. Nf3 {[%emt 0:00:34]} d5 {[%emt 0:00:26]} 3. e3 {[%emt 0:00:27]} Nf6 {[%emt 0:00:26]} 4. b3 {[%emt 0:00:29]} c5 {[%emt 0:00:29]} 5. Bb2 {[%emt 0:00:27]} Nc6 {[%emt 0:00:26]} 6. cxd5 {[%emt 0:00:36]} Nxd5 {[%emt 0:00:35]} 7. Be2 {[%emt 0:00:35]} Be7 {[%emt 0:00:33]} 8. O-O {[%emt 0:00:32]} O-O {[%emt 0:00:27]} 9. Nc3 {[%emt 0:00:55]} Nf6 {[%emt 0:00:26]} 10. Rc1 {[%emt 0:00:42]} b6 {[%emt 0:00:26]} 11. d4 {[%emt 0:00:26]} cxd4 {[%emt 0:00:48]} 12. Nb5 {[%emt 0:00:31]} d3 {[%emt 0:00:46]} 13. Bxd3 {[%emt 0:00:33]} Bb7 {[%emt 0:01:19]} 14. Qe2 {[%emt 0:00:29]} a6 {[%emt 0:01:12]} 15. Nbd4 {[%emt 0:00:40]} Nb4 {[%emt 0:01:10]} 16. Bb1 {[%emt 0:00:30]} Rc8 {[%emt 0:00:27]} 17. Rxc8 {[%emt 0:01:43]} Qxc8 {[%emt 0:00:27]} 18. Rc1 {[%emt 0:00:28]} Qa8 {[%emt 0:00:27]} 19. a3 {[%emt 0:00:44]} Nbd5 {[%emt 0:00:26]} 20. b4 {[%emt 0:00:32]} Rc8 {[%emt 0:00:37]} 21. Rxc8+ {[%emt 0:00:30]} Qxc8 {[%emt 0:00:32]} 22. Qd3 {[%emt 0:00:39]} Qc7 {[%emt 0:01:18]} 23. g4 {[%emt 0:00:55]} e5 {[%emt 0:01:18]} 24. Nf5 {[%emt 0:02:55]} e4 {[%emt 0:00:47]} 25. Qd4 {[%emt 0:00:27]} exf3 {[%emt 0:00:34]} 26. g5 {[%emt 0:00:28]} Bd8 {[%emt 0:01:32]} 27. Be4 {[%emt 0:02:29]} Qd7 {[%emt 0:01:27]} 28. h4 {[%emt 0:01:18]} Nxe3 {[%emt 0:01:30]} 29. gxf6 {[%emt 0:00:40]} Qxd4 {[%emt 0:00:34]} 30. Bxd4 {[%emt 0:00:32]} Bxe4 {[%emt 0:01:11]} 31. Ne7+ {[%emt 0:00:31]} Bxe7 {[%emt 0:00:26]} 32. fxe7 {[%emt 0:00:26]} Bc6 {[%emt 0:00:26]} 33. Bxe3 {[%emt 0:00:32]} b5 {[%emt 0:00:25]} 34. Kh2 {[%emt 0:00:32]} f6 {[%emt 0:00:27]} 35. Kg3 {[%emt 0:00:26]} Kf7 {[%emt 0:00:26]} 36. Bc5 {[%emt 0:00:26]} g5 {[%emt 0:00:36]} 37. hxg5 {[%emt 0:00:34]} fxg5 {[%emt 0:00:26]} 38. Kg4 {[%emt 0:00:26]} Kg6 {[%emt 0:00:28]} 39. Be3 {[%emt 0:00:33]} h5+ {[%emt 0:00:26]} 40. Kg3 {[%emt 0:00:26]} Kf5 {[%emt 0:00:27]} 41. Bb6 {[%emt 0:00:34]} h4+ {[%emt 0:00:40]} 42. Kh3 {[%emt 0:00:26]} Bd7 {[%emt 0:00:26]} 43. Bc5 {[%emt 0:00:38]} Ke4+ {[%emt 0:01:38]} 44. Kh2 {[%emt 0:00:26]} g4 {[%emt 0:00:27]} 45. Bd6 {[%emt 0:00:36]} Kd3 {[%emt 0:00:28]} 46. Be5 {[%emt 0:00:40]} Ke2 {[%emt 0:00:31]} 47. Kg1 {[%emt 0:00:26]} g3 {[%emt 0:01:06]} 48. Bd4 {[%emt 0:00:26]} gxf2+ {[%emt 0:00:54]} 49. Bxf2 {[%emt 0:00:27]} h3 {[%emt 0:00:26]} 50. Bg3 {[%emt 0:00:31]} h2+ {[%emt 0:00:29]} 51. Kxh2 {[%emt 0:00:26]} f2 {[%emt 0:00:26]} 52. Bxf2 {[%emt 0:00:27]} Kxf2 {[%emt 0:00:26]} 53. Kh1 {[%emt 0:00:28]} Ke3 {[%emt 0:00:27]} 54. Kg2 {[%emt 0:00:26]} Be8 {[%emt 0:00:30]} 55. Kf1 {[%emt 0:00:28]} Kd3 {[%emt 0:00:30]} 56. a4 {[%emt 0:00:29]} bxa4 {[%emt 0:00:27]} 0-1

[Event "Sambir Charity 2024"]
[Site "Sambir"]
[Date "2024.09.22"]
[Round "5.2"]
[White "Mikhaletz, Lubomir"]
[Black "Karpinets, Andrian"]
[Result "1-0"]
[ECO "A01"]
[WhiteElo "2272"]
[BlackElo "1899"]
[PlyCount "79"]
[EventDate "2024.09.10"]
[EventType "swiss"]
[EventCountry "UKR"]
[TimeControl "5400+30"]

1. b3 {[%emt 1:20:50]} d5 {[%emt 1:20:57]} 2. Bb2 {[%emt 0:00:26]} Nf6 {[%emt 0:00:26]} 3. e3 {[%emt 0:00:28]} c6 {[%emt 0:00:44]} 4. f4 {[%emt 0:00:34]} Bf5 {[%emt 0:00:33]} 5. Nf3 {[%emt 0:00:34]} h6 {[%emt 0:00:32]} 6. h3 {[%emt 0:00:39]} e6 {[%emt 0:00:28]} 7. d3 {[%emt 0:00:51]} Bc5 {[%emt 0:00:36]} 8. Qe2 {[%emt 0:00:33]} Qb6 {[%emt 0:01:01]} 9. Nd4 {[%emt 0:01:00]} Bh7 {[%emt 0:01:08]} 10. g4 {[%emt 0:01:21]} Bb4+ {[%emt 0:01:12]} 11. Nd2 {[%emt 0:00:45]} c5 {[%emt 0:00:38]} 12. N4f3 {[%emt 0:01:06]} c4 {[%emt 0:00:41]} 13. Bd4 {[%emt 0:01:26]} Qa5 {[%emt 0:01:44]} 14. a3 {[%emt 0:00:32]} Bc3 {[%emt 0:01:00]} 15. b4 {[%emt 0:00:46]} Bxd2+ {[%emt 0:00:26]} 16. Qxd2 {[%emt 0:01:02]} Qc7 {[%emt 0:00:39]} 17. Qc3 {[%emt 0:01:28]} Nbd7 {[%emt 0:00:53]} 18. Ne5 {[%emt 0:00:56]} Rc8 {[%emt 0:01:48]} 19. g5 {[%emt 0:01:43]} hxg5 {[%emt 0:01:04]} 20. fxg5 {[%emt 0:00:27]} Nh5 {[%emt 0:00:58]} 21. Rg1 {[%emt 0:01:09]} cxd3 {[%emt 0:02:09]} 22. Qxc7 {[%emt 0:00:31]} Rxc7 {[%emt 0:00:27]} 23. cxd3 {[%emt 0:00:46]} Bf5 {[%emt 0:01:21]} 24. Be2 {[%emt 0:00:48]} f6 {[%emt 0:00:43]} 25. Nxd7 {[%emt 0:00:51]} Rxd7 {[%emt 0:00:36]} 26. Bxa7 {[%emt 0:00:35]} e5 {[%emt 0:00:37]} 27. Bg4 {[%emt 0:00:42]} Bxg4 {[%emt 0:00:29]} 28. hxg4 {[%emt 0:00:30]} Ng3 {[%emt 0:00:27]} 29. Kf2 {[%emt 0:00:31]} Rh3 {[%emt 0:00:35]} 30. Rxg3 {[%emt 0:00:28]} Rh2+ {[%emt 0:00:30]} 31. Rg2 {[%emt 0:00:29]} Rxg2+ {[%emt 0:00:28]} 32. Kxg2 {[%emt 0:00:27]} Rc7 {[%emt 0:00:28]} 33. gxf6 {[%emt 0:00:37]} gxf6 {[%emt 0:00:26]} 34. Bc5 {[%emt 0:00:30]} Rg7 {[%emt 0:00:32]} 35. Kf3 {[%emt 0:00:32]} Kd7 {[%emt 0:00:29]} 36. a4 {[%emt 0:00:36]} Kc6 {[%emt 0:00:26]} 37. Rc1 {[%emt 0:00:27]} Rg6 {[%emt 0:00:34]} 38. b5+ {[%emt 0:00:29]} Kd7 {[%emt 0:00:26]} 39. a5 {[%emt 0:00:26]} Rg8 40. a6 1-0

[Event "Sambir Charity 2024"]
[Site "Sambir"]
[Date "2024.09.22"]
[Round "5.3"]
[White "Pankiv, Maksym"]
[Black "Tarleva, Vira"]
[Result "1-0"]
[ECO "E11"]
[WhiteElo "1961"]
[BlackElo "2030"]
[PlyCount "93"]
[EventDate "2024.09.10"]
[EventType "swiss"]
[EventCountry "UKR"]
[TimeControl "5400+30"]

1. d4 {[%emt 1:20:52]} Nf6 {[%emt 1:20:53]} 2. c4 {[%emt 0:00:25]} e6 {[%emt 0:00:26]} 3. Nf3 {[%emt 0:00:27]} Bb4+ {[%emt 0:00:29]} 4. Nbd2 {[%emt 0:00:26]} d5 {[%emt 0:00:34]} 5. e3 {[%emt 0:00:28]} O-O {[%emt 0:00:33]} 6. a3 {[%emt 0:00:28]} Be7 {[%emt 0:00:43]} 7. Bd3 {[%emt 0:00:27]} c5 {[%emt 0:00:34]} 8. cxd5 {[%emt 0:00:36]} exd5 {[%emt 0:00:33]} 9. dxc5 {[%emt 0:00:28]} Bxc5 {[%emt 0:00:30]} 10. b4 {[%emt 0:00:27]} Bb6 {[%emt 0:00:46]} 11. Bb2 {[%emt 0:00:26]} Be6 {[%emt 0:01:42]} 12. Nd4 {[%emt 0:00:40]} Nc6 {[%emt 0:00:37]} 13. N2b3 {[%emt 0:00:38]} Ne5 {[%emt 0:01:05]} 14. Be2 {[%emt 0:00:43]} Nc4 {[%emt 0:01:30]} 15. Nxe6 {[%emt 0:01:23]} fxe6 {[%emt 0:01:16]} 16. Bxc4 {[%emt 0:01:07]} dxc4 {[%emt 0:00:27]} 17. Nd2 {[%emt 0:00:35]} Qd3 {[%emt 0:01:24]} 18. Rc1 {[%emt 0:01:03]} Ne4 {[%emt 0:02:48]} 19. Nxe4 {[%emt 0:00:35]} Qxe4 {[%emt 0:00:27]} 20. O-O {[%emt 0:00:56]} Rac8 {[%emt 0:01:08]} 21. Qc2 {[%emt 0:01:02]} Qg4 {[%emt 0:00:35]} 22. h3 {[%emt 0:01:34]} Qg5 {[%emt 0:00:30]} 23. Qe4 {[%emt 0:00:28]} Qd5 {[%emt 0:00:36]} 24. Qg4 Rf7 25. e4 {[%emt 0:02:17]} Qc6 {[%emt 0:01:57]} 26. Kh1 {[%emt 0:00:50]} Rcf8 {[%emt 0:00:32]} 27. f3 {[%emt 0:00:43]} Bc7 {[%emt 0:00:27]} 28. Rfd1 {[%emt 0:01:17]} b5 {[%emt 0:00:28]} 29. Bd4 {[%emt 0:01:10]} Bf4 {[%emt 0:00:27]} 30. Rc2 {[%emt 0:00:37]} Rd8 {[%emt 0:00:39]} 31. g3 {[%emt 0:01:31]} Be5 {[%emt 0:00:34]} 32. Rcd2 {[%emt 0:00:34]} c3 {[%emt 0:00:41]} 33. Bxc3 {[%emt 0:00:37]} Rxd2 {[%emt 0:00:27]} 34. Bxd2 {[%emt 0:00:30]} Qc2 {[%emt 0:00:30]} 35. Rc1 {[%emt 0:00:30]} h5 {[%emt 0:00:51]} 36. Rxc2 {[%emt 0:00:36]} hxg4 {[%emt 0:00:26]} 37. f4 {[%emt 0:00:26]} Bd4 {[%emt 0:00:28]} 38. hxg4 {[%emt 0:00:26]} Rd7 {[%emt 0:00:31]} 39. Kg2 {[%emt 0:00:31]} e5 {[%emt 0:00:31]} 40. Kf3 {[%emt 0:00:31]} Kf7 {[%emt 0:00:29]} 41. Be3 {[%emt 0:00:30]} Ba1 {[%emt 0:00:30]} 42. Ke2 {[%emt 0:00:42]} a6 {[%emt 0:00:37]} 43. Rc6 {[%emt 0:00:36]} Bb2 {[%emt 0:00:29]} 44. Rxa6 {[%emt 0:00:35]} Rc7 {[%emt 0:00:35]} 45. Bc5 {[%emt 0:00:44]} Bc1 {[%emt 0:00:27]} 46. fxe5 {[%emt 0:00:29]} Rd7 {[%emt 0:00:31]} 47. e6+ {[%emt 0:00:27]} 1-0

[Event "Sambir Charity 2024"]
[Site "Sambir"]
[Date "2024.09.22"]
[Round "5.4"]
[White "Karvatskyi, Oleksii"]
[Black "Goncharenko, Rostislav"]
[Result "1/2-1/2"]
[ECO "B18"]
[WhiteElo "2144"]
[BlackElo "1731"]
[PlyCount "120"]
[EventDate "2024.09.10"]
[EventType "swiss"]
[EventCountry "UKR"]
[TimeControl "5400+30"]

1. Nc3 {[%emt 1:20:51]} c6 {[%emt 1:20:51]} 2. d4 {[%emt 0:00:27]} d5 {[%emt 0:00:25]} 3. e4 {[%emt 0:00:26]} dxe4 {[%emt 0:00:26]} 4. Nxe4 {[%emt 0:00:26]} Bf5 {[%emt 0:00:26]} 5. Ng3 {[%emt 0:00:29]} Bg6 {[%emt 0:00:26]} 6. Nf3 {[%emt 0:00:28]} Nd7 {[%emt 0:00:26]} 7. Bd3 {[%emt 0:00:31]} e6 {[%emt 0:00:39]} 8. O-O {[%emt 0:00:32]} Bd6 {[%emt 0:00:36]} 9. c4 {[%emt 0:00:27]} Ngf6 {[%emt 0:00:28]} 10. b3 {[%emt 0:00:26]} Qe7 {[%emt 0:01:09]} 11. a3 {[%emt 0:00:55]} Rd8 {[%emt 0:00:36]} 12. Re1 {[%emt 0:00:37]} O-O {[%emt 0:00:39]} 13. Nf5 {[%emt 0:00:34]} Bxf5 {[%emt 0:00:36]} 14. Bxf5 {[%emt 0:00:27]} Rfe8 {[%emt 0:00:48]} 15. Bb2 {[%emt 0:00:42]} Qf8 {[%emt 0:00:26]} 16. Bd3 {[%emt 0:00:28]} Bf4 {[%emt 0:01:00]} 17. Qc2 {[%emt 0:00:30]} g6 {[%emt 0:00:55]} 18. Rad1 {[%emt 0:00:34]} Bh6 {[%emt 0:00:45]} 19. b4 {[%emt 0:00:47]} Bg7 {[%emt 0:00:27]} 20. Ne5 {[%emt 0:00:26]} Nxe5 {[%emt 0:00:43]} 21. dxe5 {[%emt 0:00:28]} Nd7 {[%emt 0:01:07]} 22. Bf1 {[%emt 0:00:46]} Nb6 {[%emt 0:00:45]} 23. Bd4 {[%emt 0:00:34]} Qe7 {[%emt 0:00:49]} 24. Qb3 {[%emt 0:00:34]} Qg5 {[%emt 0:00:56]} 25. a4 {[%emt 0:00:59]} Nc8 {[%emt 0:00:44]} 26. g3 {[%emt 0:00:32]} h5 {[%emt 0:00:47]} 27. f4 {[%emt 0:00:49]} Qe7 {[%emt 0:00:41]} 28. Bg2 {[%emt 0:01:10]} Bf8 {[%emt 0:00:26]} 29. Bc3 {[%emt 0:01:24]} Rxd1 {[%emt 0:00:35]} 30. Rxd1 {[%emt 0:00:27]} Rd8 {[%emt 0:00:26]} 31. Be1 {[%emt 0:01:11]} Rxd1 {[%emt 0:00:35]} 32. Qxd1 {[%emt 0:00:27]} Qc7 {[%emt 0:00:26]} 33. Qd4 {[%emt 0:01:20]} c5 {[%emt 0:00:53]} 34. Qe4 {[%emt 0:00:51]} cxb4 {[%emt 0:00:31]} 35. Qxb7 {[%emt 0:00:36]} Qxb7 {[%emt 0:00:45]} 36. Bxb7 {[%emt 0:00:27]} Nb6 {[%emt 0:00:26]} 37. Bf2 {[%emt 0:00:34]} Nxa4 {[%emt 0:02:03]} 38. Kf1 {[%emt 0:00:33]} Bc5 {[%emt 0:01:44]} 39. Bc6 {[%emt 0:00:37]} Bxf2 {[%emt 0:00:38]} 40. Bxa4 {[%emt 0:00:27]} Bd4 {[%emt 0:00:35]} 41. Ke2 {[%emt 0:00:34]} Kf8 {[%emt 0:00:36]} 42. h3 Ke7 {[%emt 0:00:34]} 43. Kd3 {[%emt 0:00:57]} Bf2 {[%emt 0:01:07]} 44. g4 {[%emt 0:00:28]} hxg4 {[%emt 0:00:33]} 45. hxg4 {[%emt 0:00:29]} f6 {[%emt 0:00:37]} 46. exf6+ {[%emt 0:01:13]} Kxf6 {[%emt 0:00:26]} 47. Ke4 {[%emt 0:00:27]} Bc5 {[%emt 0:00:36]} 48. Bc2 {[%emt 0:00:51]} Bd6 {[%emt 0:00:31]} 49. Bb3 {[%emt 0:00:43]} a5 {[%emt 0:00:46]} 50. Bc2 {[%emt 0:01:26]} g5 {[%emt 0:00:33]} 51. fxg5+ {[%emt 0:00:49]} Kxg5 {[%emt 0:00:26]} 52. Bb3 {[%emt 0:00:34]} Kxg4 {[%emt 0:00:33]} 53. c5 {[%emt 0:00:26]} Bxc5 {[%emt 0:00:27]} 54. Bxe6+ {[%emt 0:00:26]} Kg3 {[%emt 0:00:24]} 55. Kd3 {[%emt 0:00:40]} a4 {[%emt 0:00:26]} 56. Bd7 {[%emt 0:00:29]} a3 {[%emt 0:00:27]} 57. Be6 {[%emt 0:00:27]} Kf2 {[%emt 0:00:35]} 58. Kc2 {[%emt 0:00:26]} Ke3 {[%emt 0:00:26]} 59. Kb3 {[%emt 0:00:29]} Kd2 {[%emt 0:00:29]} 60. Ka2 {[%emt 0:00:26]} Kc3 {[%emt 0:00:31]} 1/2-1/2

[Event "Sambir Charity 2024"]
[Site "Sambir"]
[Date "2024.09.22"]
[Round "6.1"]
[White "Dubnevych, Maksym"]
[Black "Mikhaletz, Lubomir"]
[Result "1/2-1/2"]
[ECO "E15"]
[WhiteElo "2267"]
[BlackElo "2272"]
[PlyCount "51"]
[EventDate "2024.09.10"]
[EventType "swiss"]
[EventCountry "UKR"]
[TimeControl "5400+30"]

1. d4 {[%emt 1:20:52]} Nf6 {[%emt 1:20:54]} 2. Nf3 {[%emt 0:00:28]} e6 {[%emt 0:00:29]} 3. c4 {[%emt 0:00:26]} b6 {[%emt 0:00:34]} 4. g3 {[%emt 0:00:26]} Bb4+ {[%emt 0:00:46]} 5. Bd2 {[%emt 0:00:28]} Qe7 {[%emt 0:00:53]} 6. Bg2 {[%emt 0:00:28]} Bb7 {[%emt 0:00:34]} 7. O-O {[%emt 0:00:26]} Bxd2 {[%emt 0:00:38]} 8. Nbxd2 {[%emt 0:00:29]} O-O {[%emt 0:01:31]} 9. Qc2 {[%emt 0:00:26]} c5 {[%emt 0:00:42]} 10. e4 {[%emt 0:01:21]} d5 {[%emt 0:03:36]} 11. exd5 {[%emt 0:00:46]} exd5 {[%emt 0:00:27]} 12. Rfe1 {[%emt 0:00:26]} Qd6 {[%emt 0:00:51]} 13. cxd5 {[%emt 0:00:31]} Bxd5 {[%emt 0:01:27]} 14. dxc5 {[%emt 0:00:31]} Qxc5 {[%emt 0:01:07]} 15. Qxc5 {[%emt 0:00:56]} bxc5 {[%emt 0:00:26]} 16. Ne5 {[%emt 0:00:56]} Bxg2 {[%emt 0:01:10]} 17. Kxg2 {[%emt 0:00:25]} Nbd7 {[%emt 0:00:48]} 18. Nxd7 {[%emt 0:00:27]} Nxd7 {[%emt 0:00:27]} 19. Rac1 {[%emt 0:00:26]} Rfe8 {[%emt 0:00:59]} 20. Ne4 {[%emt 0:00:25]} f5 {[%emt 0:00:54]} 21. Nd6 {[%emt 0:00:33]} Rxe1 {[%emt 0:00:34]} 22. Rxe1 {[%emt 0:00:26]} g6 {[%emt 0:00:44]} 23. Re7 {[%emt 0:00:27]} Nf6 {[%emt 0:00:28]} 24. Nb7 {[%emt 0:01:03]} Rc8 {[%emt 0:00:47]} 25. Na5 {[%emt 0:02:22]} c4 {[%emt 0:00:26]} 26. Rxa7 1/2-1/2

[Event "Sambir Charity 2024"]
[Site "Sambir"]
[Date "2024.09.22"]
[Round "6.2"]
[White "Baziuk, Vladyslav"]
[Black "Pankiv, Maksym"]
[Result "*"]
[ECO "E06"]
[WhiteElo "2247"]
[BlackElo "1961"]
[PlyCount "30"]
[EventDate "2024.09.10"]
[EventType "swiss"]
[EventCountry "UKR"]
[TimeControl "5400+30"]

1. d4 {[%emt 1:20:51]} Nf6 {[%emt 1:20:51]} 2. c4 {[%emt 0:00:26]} e6 {[%emt 0:00:26]} 3. g3 {[%emt 0:00:26]} d5 {[%emt 0:00:26]} 4. Nf3 {[%emt 0:00:26]} Be7 {[%emt 0:00:26]} 5. Bg2 {[%emt 0:00:26]} O-O {[%emt 0:00:27]} 6. O-O {[%emt 0:00:27]} dxc4 {[%emt 0:00:26]} 7. Qc2 {[%emt 0:00:26]} Bd7 {[%emt 0:00:32]} 8. Ne5 {[%emt 0:01:19]} Nc6 {[%emt 0:00:34]} 9. Qxc4 {[%emt 0:02:13]} Nxe5 {[%emt 0:02:51]} 10. dxe5 {[%emt 0:00:29]} Nd5 {[%emt 0:00:26]} 11. Rd1 {[%emt 0:01:58]} Qc8 {[%emt 0:02:45]} 12. Nd2 {[%emt 0:01:20]} c5 {[%emt 0:01:16]} 13. Qg4 {[%emt 0:00:47]} Bc6 {[%emt 0:01:30]} 14. Nc4 {[%emt 0:01:56]} Rd8 {[%emt 0:01:25]} 15. Bh6 {[%emt 0:01:15]} Bf8 *

[Event "Sambir Charity 2024"]
[Site "Sambir"]
[Date "2024.09.22"]
[Round "6.3"]
[White "Lemba, Albert"]
[Black "Karvatskyi, Oleksii"]
[Result "0-1"]
[ECO "A01"]
[WhiteElo "1882"]
[BlackElo "2144"]
[PlyCount "118"]
[EventDate "2024.09.10"]
[EventType "swiss"]
[EventCountry "UKR"]
[TimeControl "5400+30"]

1. b3 {[%emt 1:20:51]} d5 {[%emt 1:20:55]} 2. Bb2 {[%emt 0:00:26]} Nf6 {[%emt 0:00:27]} 3. e3 {[%emt 0:00:26]} Nbd7 {[%emt 0:00:31]} 4. f4 {[%emt 0:00:29]} g6 {[%emt 0:00:28]} 5. Nf3 {[%emt 0:00:28]} Bg7 {[%emt 0:00:26]} 6. Be2 {[%emt 0:00:30]} O-O {[%emt 0:00:28]} 7. O-O {[%emt 0:00:27]} b6 {[%emt 0:00:28]} 8. Ne5 {[%emt 0:00:56]} Bb7 {[%emt 0:00:27]} 9. Nxd7 {[%emt 0:00:33]} Qxd7 {[%emt 0:00:29]} 10. Bf3 {[%emt 0:00:30]} c5 {[%emt 0:00:42]} 11. d3 {[%emt 0:00:46]} Rad8 {[%emt 0:00:33]} 12. Nd2 {[%emt 0:00:30]} Rfe8 {[%emt 0:00:27]} 13. Qe2 {[%emt 0:00:37]} d4 {[%emt 0:00:28]} 14. Bxb7 {[%emt 0:01:03]} Qxb7 {[%emt 0:00:27]} 15. e4 {[%emt 0:00:27]} e5 {[%emt 0:00:33]} 16. fxe5 {[%emt 0:00:36]} Rxe5 {[%emt 0:00:27]} 17. a4 {[%emt 0:00:50]} a6 {[%emt 0:00:44]} 18. Bc1 {[%emt 0:00:46]} Nd5 {[%emt 0:00:41]} 19. Nc4 {[%emt 0:00:56]} Nc3 {[%emt 0:00:27]} 20. Qf3 {[%emt 0:00:45]} Re6 {[%emt 0:00:32]} 21. Bg5 {[%emt 0:02:01]} Rde8 {[%emt 0:00:59]} 22. a5 {[%emt 0:00:57]} b5 {[%emt 0:00:29]} 23. Nb6 {[%emt 0:00:25]} h6 {[%emt 0:01:57]} 24. Bd2 {[%emt 0:00:58]} Rf8 {[%emt 0:01:28]} 25. Qh3 {[%emt 0:01:09]} Kh7 {[%emt 0:00:45]} 26. Kh1 {[%emt 0:00:45]} Rfe8 {[%emt 0:01:57]} 27. Rf2 {[%emt 0:00:57]} R8e7 {[%emt 0:00:51]} 28. Raf1 {[%emt 0:00:34]} Re5 {[%emt 0:01:12]} 29. Qc8 {[%emt 0:01:25]} Qxc8 {[%emt 0:01:01]} 30. Nxc8 {[%emt 0:00:26]} Rc7 {[%emt 0:00:27]} 31. Nb6 {[%emt 0:00:36]} Kg8 {[%emt 0:00:37]} 32. Bf4 {[%emt 0:00:46]} g5 {[%emt 0:01:01]} 33. Bxe5 Bxe5 {[%emt 0:00:26]} 34. g3 {[%emt 0:01:29]} Kg7 {[%emt 0:00:32]} 35. Kg2 {[%emt 0:00:29]} f6 {[%emt 0:00:26]} 36. h4 {[%emt 0:00:49]} g4 {[%emt 0:01:01]} 37. h5 {[%emt 0:00:56]} Kf7 {[%emt 0:00:31]} 38. Re1 {[%emt 0:01:00]} Ke6 {[%emt 0:00:31]} 39. Nd5 {[%emt 0:00:43]} Nxd5 {[%emt 0:00:37]} 40. exd5+ {[%emt 0:00:26]} Kxd5 {[%emt 0:00:27]} 41. Rf5 {[%emt 0:00:46]} Rg7 {[%emt 0:00:31]} 42. Ref1 {[%emt 0:00:32]} c4 {[%emt 0:01:06]} 43. bxc4+ {[%emt 0:00:27]} bxc4 {[%emt 0:00:27]} 44. Rb1 {[%emt 0:00:29]} cxd3 {[%emt 0:00:51]} 45. cxd3 {[%emt 0:00:27]} Rc7 {[%emt 0:00:27]} 46. Rb6 {[%emt 0:00:40]} Rc3 {[%emt 0:00:28]} 47. Rxa6 {[%emt 0:00:29]} Rxd3 {[%emt 0:00:26]} 48. Ra8 {[%emt 0:00:35]} Rxg3+ {[%emt 0:00:29]} 49. Kf2 {[%emt 0:00:28]} Ra3 {[%emt 0:00:30]} 50. Ke2 {[%emt 0:00:33]} Ke4 {[%emt 0:00:29]} 51. Rf1 {[%emt 0:00:28]} Ra2+ {[%emt 0:00:32]} 52. Kd1 {[%emt 0:00:35]} Ra1+ {[%emt 0:00:53]} 53. Ke2 {[%emt 0:00:30]} d3+ {[%emt 0:00:26]} 54. Kf2 {[%emt 0:00:27]} g3+ {[%emt 0:00:40]} 55. Kg2 {[%emt 0:00:32]} Ra2+ {[%emt 0:00:44]} 56. Kh3 {[%emt 0:00:26]} f5 57. Rh1 Rh2+ {[%emt 0:01:27]} 58. Rxh2 {[%emt 0:00:51]} gxh2 {[%emt 0:00:27]} 59. Kg2 {[%emt 0:00:30]} d2 {[%emt 0:00:26]} 0-1

[Event "Sambir Charity 2024"]
[Site "Sambir"]
[Date "2024.09.22"]
[Round "6.4"]
[White "Kravets, Ivan"]
[Black "Bondarenko, Stanislav"]
[Result "0-1"]
[ECO "B22"]
[WhiteElo "2149"]
[BlackElo "1780"]
[PlyCount "30"]
[EventDate "2024.09.10"]
[EventType "swiss"]
[EventCountry "UKR"]
[TimeControl "5400+30"]

1. e4 {[%emt 1:20:53]} c5 {[%emt 1:20:51]} 2. c3 {[%emt 0:00:31]} Nc6 {[%emt 0:00:32]} 3. d4 {[%emt 0:00:31]} cxd4 {[%emt 0:00:27]} 4. cxd4 {[%emt 0:00:27]} d5 {[%emt 0:00:36]} 5. exd5 {[%emt 0:00:38]} Qxd5 {[%emt 0:00:27]} 6. Nf3 {[%emt 0:00:33]} e6 {[%emt 0:00:34]} 7. Nc3 {[%emt 0:00:46]} Bb4 {[%emt 0:00:26]} 8. Bd3 {[%emt 0:00:41]} Nf6 {[%emt 0:00:41]} 9. O-O {[%emt 0:00:33]} Bxc3 {[%emt 0:00:27]} 10. bxc3 {[%emt 0:00:26]} O-O {[%emt 0:00:33]} 11. c4 {[%emt 0:01:15]} Qh5 {[%emt 0:00:31]} 12. Rb1 {[%emt 0:01:38]} Rd8 {[%emt 0:00:46]} 13. Rb5 {[%emt 0:01:12]} e5 {[%emt 0:01:27]} 14. dxe5 {[%emt 0:00:45]} a6 {[%emt 0:01:37]} 15. Rb1 {[%emt 0:02:49]} Bf5 {[%emt 0:00:37]} 0-1

[Event "Sambir Charity 2024"]
[Site "Sambir"]
[Date "2024.09.22"]
[Round "7.1"]
[White "Karvatskyi, Oleksii"]
[Black "Dubnevych, Maksym"]
[Result "0-1"]
[ECO "C58"]
[WhiteElo "2144"]
[BlackElo "2267"]
[PlyCount "64"]
[EventDate "2024.09.10"]
[EventType "swiss"]
[EventCountry "UKR"]
[TimeControl "5400+30"]

1. e4 {[%emt 1:20:51]} e5 {[%emt 1:21:13]} 2. Nf3 {[%emt 0:00:27]} Nc6 {[%emt 0:00:26]} 3. Bc4 {[%emt 0:00:26]} Nf6 {[%emt 0:00:37]} 4. Ng5 {[%emt 0:00:26]} d5 {[%emt 0:00:26]} 5. exd5 {[%emt 0:00:26]} Na5 {[%emt 0:00:26]} 6. Bb5+ {[%emt 0:00:26]} c6 {[%emt 0:01:43]} 7. dxc6 {[%emt 0:00:27]} bxc6 {[%emt 0:00:26]} 8. Bd3 {[%emt 0:01:10]} Nd5 {[%emt 0:00:28]} 9. h4 {[%emt 0:00:26]} h6 {[%emt 0:01:36]} 10. Qh5 {[%emt 0:00:28]} Qf6 {[%emt 0:00:27]} 11. Ne4 {[%emt 0:00:29]} Qe7 {[%emt 0:00:34]} 12. g3 {[%emt 0:04:31]} g6 {[%emt 0:00:35]} 13. Qe2 {[%emt 0:00:30]} Nb4 {[%emt 0:01:13]} 14. a3 {[%emt 0:02:38]} Nxd3+ {[%emt 0:00:26]} 15. Qxd3 {[%emt 0:00:27]} f5 {[%emt 0:00:26]} 16. Nec3 {[%emt 0:00:28]} Bg7 {[%emt 0:00:31]} 17. b4 {[%emt 0:00:32]} Nb7 {[%emt 0:00:26]} 18. Bb2 {[%emt 0:00:52]} O-O {[%emt 0:00:26]} 19. Qc4+ {[%emt 0:01:01]} Be6 {[%emt 0:00:43]} 20. Qxc6 {[%emt 0:00:38]} Rac8 {[%emt 0:00:26]} 21. Qg2 {[%emt 0:01:11]} Nd6 {[%emt 0:00:52]} 22. Nd5 {[%emt 0:00:46]} Qb7 {[%emt 0:00:49]} 23. Nbc3 {[%emt 0:00:40]} Kh7 {[%emt 0:02:59]} 24. h5 {[%emt 0:01:01]} g5 {[%emt 0:00:33]} 25. O-O-O {[%emt 0:01:05]} a5 {[%emt 0:01:00]} 26. Rhg1 {[%emt 0:00:48]} e4 {[%emt 0:00:29]} 27. Ne3 {[%emt 0:00:42]} axb4 {[%emt 0:00:26]} 28. axb4 {[%emt 0:00:26]} Qxb4 {[%emt 0:00:26]} 29. d4 {[%emt 0:00:34]} Rxc3 {[%emt 0:00:30]} 30. Bxc3 {[%emt 0:00:30]} Qxc3 {[%emt 0:00:26]} 31. Qf1 {[%emt 0:00:31]} Ra8 {[%emt 0:00:28]} 32. Qb5 {[%emt 0:00:31]} Nxb5 {[%emt 0:00:28]} 0-1